[Event "Bundesturnier Hauptturnier 1 2024"]
[Site "Olten"]
[Date "2024.05.11"]
[Round "5.10"]
[White "Hirzel, Cedric"]
[Black "Schlegel, Igor"]
[Result "0-1"]
[ECO "A13"]
[WhiteElo "2086"]
[BlackElo "2215"]
[Annotator "ChessBase"]
[PlyCount "66"]
[EventDate "2024.05.09"]
[EventType "tourn"]
[EventCountry "SUI"]
[SourceTitle "playchess.com"]
[Source "ChessBase"]
[SourceQuality "1"]
[TimeControl "5400+30"]

1. c4 {[%emt 0:00:03]} e6 {[%emt 0:03:54]} 2. Nf3 {[%emt 0:00:07]} d5 {[%emt 0:00:06]} 3. g3 {[%emt 0:00:04]} d4 {[%emt 0:00:37]} 4. Bg2 {[%emt 0:00:07]} Nc6 {[%emt 0:00:04]} 5. O-O {[%emt 0:00:07]} Bc5 {[%emt 0:00:46]} 6. d3 {[%emt 0:00:22]} Nf6 {[%emt 0:00:05]} 7. Nbd2 {[%emt 0:00:04]} a5 {[%emt 0:23:33]} 8. Nb3 {[%emt 0:00:54]} Be7 {[%emt 0:02:02]} 9. e3 {[%emt 0:00:09]} e5 {[%emt 0:01:00]} 10. exd4 {[%emt 0:03:10]} exd4 {[%emt 0:00:16]} 11. Re1 {[%emt 0:00:18]} O-O {[%emt 0:00:28]} 12. Bg5 {[%emt 0:08:18]} h6 {[%emt 0:09:52]} 13. Bxf6 {[%emt 0:07:20]} Bxf6 {[%emt 0:01:48]} 14. a3 {[%emt 0:06:28]} Bf5 {[%emt 0:15:26]} 15. Qc2 {[%emt 0:12:27]} Rb8 {[%emt 0:07:00]} 16. Nc5 {[%emt 0:06:21]} Be7 {[%emt 0:04:38]} 17. Ne4 {[%emt 0:02:37]} Re8 {[%emt 0:01:13]} 18. Re2 {[%emt 0:08:19]} Bf8 {[%emt 0:01:08]} 19. Rae1 {[%emt 0:00:16]} Qd7 {[%emt 0:00:38]} 20. Nh4 {[%emt 0:02:21]} Bg4 {[%emt 0:04:41]} 21. f3 {[%emt 0:01:31]} Bh5 {[%emt 0:00:15]} 22. Bh3 {[%emt 0:08:37]} Qxh3 {[%emt 0:00:27]} 23. Nf6+ {[%emt 0:00:13]} gxf6 {[%emt 0:00:07]} 24. Rxe8 {[%emt 0:00:04]} Rxe8 {[%emt 0:00:15]} 25. Rxe8 {[%emt 0:00:08]} Ne5 {[%emt 0:09:45]} 26. Qf2 {[%emt 0:04:25]} Qd7 {[%emt 0:00:29]} 27. Ra8 {[%emt 0:00:06]} Bg6 {[%emt 0:09:48]} 28. Qd2 {[%emt 0:00:29]} Kg7 {[%emt 0:00:37]} 29. Rxa5 {[%emt 0:00:17]} c5 {[%emt 0:00:30]} 30. b4 {[%emt 0:00:29]} Qc6 {[%emt 0:01:21]} 31. Kg2 {[%emt 0:00:53]} Bxd3 {[%emt 0:00:23]} 32. b5 {[%emt 0:01:20]} Qc8 {[%emt 0:00:51]} 33. f4 {[%emt 0:00:38]} Be4+ {[%emt 0:00:20]} 0-1

[Event "Bundesturnier Hauptturnier 1 2024"]
[Site "Olten"]
[Date "2024.05.11"]
[Round "5.12"]
[White "Rode, Antony"]
[Black "Rappazzo, Johannes"]
[Result "0-1"]
[ECO "E61"]
[WhiteElo "1984"]
[BlackElo "2129"]
[Annotator "ChessBase"]
[PlyCount "64"]
[EventDate "2024.05.09"]
[EventType "tourn"]
[EventCountry "SUI"]
[SourceTitle "playchess.com"]
[Source "ChessBase"]
[SourceQuality "1"]
[TimeControl "5400+30"]

1. d4 {[%emt 0:00:03]} Nf6 {[%emt 0:00:05]} 2. c4 {[%emt 0:00:06]} g6 {[%emt 0:00:03]} 3. Nc3 {[%emt 0:00:09]} Bg7 {[%emt 0:00:04]} 4. g3 {[%emt 0:00:22]} O-O {[%emt 0:00:11]} 5. Bg2 {[%emt 0:00:07]} d6 {[%emt 0:00:08]} 6. h3 {[%emt 0:00:18]} c5 {[%emt 0:02:03]} 7. e3 {[%emt 0:02:46]} cxd4 {[%emt 0:15:48]} 8. exd4 {[%emt 0:00:27]} Qc7 {[%emt 0:02:41]} 9. b3 {[%emt 0:01:24]} e5 {[%emt 0:03:22]} 10. Nge2 {[%emt 0:00:43]} exd4 {[%emt 0:09:01]} 11. Nxd4 {[%emt 0:00:55]} d5 {[%emt 0:05:50]} 12. Nxd5 {[%emt 0:25:24]} Nxd5 {[%emt 0:04:51]} 13. Bxd5 {[%emt 0:01:16]} Re8+ {[%emt 0:01:08]} 14. Kf1 {[%emt 0:00:29]} Nc6 {[%emt 0:02:54]} 15. Bf4 {[%emt 0:10:21]} Qb6 {[%emt 0:32:10]} 16. Nb5 {[%emt 0:02:13]} Be5 {[%emt 0:07:57]} 17. Bxe5 {[%emt 0:05:14]} Rxe5 {[%emt 0:01:13]} 18. Kg2 {[%emt 0:14:07]} Be6 {[%emt 0:02:47]} 19. Bxe6 {[%emt 0:07:15]} fxe6 {[%emt 0:02:10]} 20. Re1 {[%emt 0:02:44]} Rd8 {[%emt 0:00:57]} 21. Qc2 {[%emt 0:09:34]} Nb4 {[%emt 0:00:59]} 22. Qc3 {[%emt 0:00:24]} Nd3 {[%emt 0:00:28]} 23. Rxe5 {[%emt 0:08:27]} Qxf2+ {[%emt 0:00:04]} 24. Kh1 {[%emt 0:00:01]} Qf3+ {[%emt 0:00:11]} 25. Kh2 {[%emt 0:00:40]} Qf2+ {[%emt 0:00:05]} 26. Kh1 {[%emt 0:00:04]} a6 {[%emt 0:04:08]} 27. Rd5 {[%emt 0:02:52]} Qf3+ {[%emt 0:00:20]} 28. Kh2 {[%emt 0:00:01]} Qe2+ {[%emt 0:01:01]} 29. Kg1 {[%emt 0:02:13]} Qe3+ {[%emt 0:00:22]} 30. Kh2 {[%emt 0:00:52]} exd5 {[%emt 0:00:13]} 31. Nd4 {[%emt 0:02:51]} Rf8 {[%emt 0:00:21]} 32. Nc2 {[%emt 0:01:36]} Rf2+ {[%emt 0:00:07]} 0-1

[Event "Bundesturnier Hauptturnier 1 2024"]
[Site "Olten"]
[Date "2024.05.11"]
[Round "6.1"]
[White "Gantner, Matthias"]
[Black "Bauer, Christian"]
[Result "0-1"]
[ECO "B30"]
[WhiteElo "2237"]
[BlackElo "2576"]
[Annotator "TA"]
[PlyCount "62"]
[EventDate "2024.05.09"]
[EventType "tourn"]
[EventCountry "SUI"]
[SourceTitle "playchess.com"]
[Source "ChessBase"]
[SourceQuality "1"]
[TimeControl "5400+30"]

{[%evp 10,62,25,10,46,22,42,42,34,50,42,34,41,0,24,22,38,0,0,0,34,-10,-12,-20,-20,-27,-27,-25,-8,-33,-32,-50,0,-22,5,-23,-18,-34,0,-3,32,55,43,28,37,27,41,-33,-13,-344,-331,-327,-357,-335,-241]} 1. e4 {[%emt 0:00:02]} c5 {[%emt 0:01:28]} 2. Nf3 {[%emt 0:00:08]} Nc6 {[%emt 0:00:09]} 3. Bb5 {[%emt 0:00:10]} e6 {[%emt 0:00:30]} 4. O-O {[%emt 0:00:11]} Nge7 {[%emt 0:00:06][%cal Bg8e7,Be7g6,Bg6f4][%mdl 32]} 5. d4 {[%emt 0:00:18]} cxd4 {[%emt 0:00:07]} 6. Nxd4 {[%emt 0:00:07]} Qc7 {[%emt 0:00:45]} 7. Be2 {[%emt 0:14:22] aiming for Nb5.} Ng6 {[%emt 0:05:26]} 8. c4 {[%emt 0:07:19]} Bc5 {[%emt 0:14:43] White is slightly better.} 9. Nc2 {[%emt 0:04:50]} O-O {[%emt 0:02:59]} 10. Nc3 {[%emt 0:02:42]} b6 {[%emt 0:00:46]} 11. Kh1 {[%emt 0:05:20]} Nf4 {[%emt 0:06:31]} 12. Bf3 {[%emt 0:01:48][%cal Ob2b4]} Ng6 {[%emt 0:03:41]} 13. Bg4 {[%emt 0:13:11]} a6 {[%emt 0:05:46]} 14. f4 {[%emt 0:02:00]} Be7 {[%emt 0:01:23]} 15. Be3 {[%emt 0:02:13]} Na5 $1 {[%emt 0:01:23]} 16. b3 {[%emt 0:06:02] [#]} b5 $1 {[%emt 0:00:05]} 17. Qd2 {[%emt 0:05:28]} bxc4 {[%emt 0:00:52]} 18. b4 {[%emt 0:01:17]} Nc6 {[%emt 0:00:41]} 19. Rab1 {[%emt 0:00:30]} Bb7 {[%emt 0:09:35]} 20. Rfd1 {[%emt 0:10:21]} Nb8 {[%emt 0:05:47]} (20... d6 $15) 21. a4 {[%emt 0:03:51]} Bf6 {[%emt 0:06:08] White must now prevent ...Bxc3.} 22. e5 {[%emt 0:04:09]} Be7 {[%emt 0:00:01]} 23. Nd4 {[%emt 0:05:08]} Nh4 {[%emt 0:01:03]} 24. Bh3 {[%emt 0:01:05]} f6 {[%emt 0:05:39]} 25. exf6 {[%emt 0:02:10]} Bxf6 {[%emt 0:05:41]} 26. b5 {[%emt 0:00:29] Dodges Nc6} Kh8 {[%emt 0:03:05]} 27. b6 {[%emt 0:02:15]} Qc8 {[%emt 0:01:00]} 28. a5 {[%emt 0:01:39]} (28. Bf2 $14) 28... Nc6 $15 {[%emt 0:01:33]} 29. Ne4 $2 {[%emt 0:02:31][%mdl 8192] [#]} (29. Nde2 $11) 29... Nxd4 $1 $19 {[%emt 0:09:12]} 30. Nxf6 {[%emt 0:00:42] [#]} Ndf5 $1 {[%emt 0:01:03] A dynamic duo of knights.} ({Stronger than} 30... Ndf3 31. Qxd7 gxf6 32. Qe7 $11 (32. gxf3 $2 {perishes.} Rg8 $19) (32. Bxe6 Qe8 $11)) 31. Nxd7 {[%emt 0:02:06]} c3 {[%emt 0:02:38] Weighted Error Value: White=0.33/Black=0.11 (very precise) .  Loses game:     	White=1     	---        Mistake:       	White=1     	Black=1      Inaccurate:     	White=4     	Black=4      OK:         	White=6     	Black=6      Best:        	White=1     	Black=1      Strong:       	---       	Black=3      Brilliant:      	---       	Black=1} 0-1

[Event "Bundesturnier Hauptturnier 1 2024"]
[Site "Olten"]
[Date "2024.05.11"]
[Round "6.2"]
[White "Loeffler, Markus"]
[Black "Baenziger, Fabian"]
[Result "1/2-1/2"]
[ECO "B90"]
[WhiteElo "2238"]
[BlackElo "2415"]
[Annotator "TA"]
[PlyCount "69"]
[EventDate "2024.05.09"]
[EventType "tourn"]
[EventCountry "SUI"]
[SourceTitle "playchess.com"]
[Source "ChessBase"]
[SourceQuality "1"]
[TimeControl "5400+30"]

{[%evp 19,69,20,35,33,31,37,39,20,20,0,19,-129,0,-94,13,-52,-52,-35,-46,-46,-48,-32,-4,-31,0,0,0,-33,0,0,0,0,0,0,0,0,0,-20,-50,-57,0,-107,-65,-66,0,0,0,0,0,0,0,0]} 1. e4 {[%emt 0:00:25]} c5 {[%emt 0:00:05]} 2. Nf3 {[%emt 0:00:04]} d6 {[%emt 0:00:06]} 3. d4 {[%emt 0:00:04]} cxd4 {[%emt 0:00:05]} 4. Nxd4 {[%emt 0:00:03]} Nf6 {[%emt 0:00:09]} 5. Nc3 {[%emt 0:00:05]} a6 {[%emt 0:00:18]} 6. Be3 {[%emt 0:00:19]} e5 {[%emt 0:00:15]} 7. Nb3 {[%emt 0:00:10]} Be6 {[%emt 0:00:31]} 8. f3 {[%emt 0:00:04]} Nbd7 {[%emt 0:00:15]} 9. g4 {[%emt 0:00:51][%cal Bg2g4,Bg4g5][%mdl 32]} Nb6 {[%emt 0:00:21]} 10. g5 {[%emt 0:01:09]} Nh5 {[%emt 0:00:21]} 11. Qd2 {[%emt 0:01:18]} Be7 {[%emt 0:00:42][%cal Oh7h6]} 12. O-O-O {[%emt 0:00:31]} Rc8 {[%emt 0:02:51]} 13. Na5 {[%emt 0:11:35] White is slightly better.} Qc7 {[%emt 0:01:59][%cal Oh5f4]} 14. Kb1 {[%emt 0:00:55]} O-O {[%emt 0:07:04][%cal Oh5f4]} 15. Rg1 {[%emt 0:01:45] [#]} (15. Qf2 $11 {remains equal.} Na4 16. Nxa4 Qxa5 17. b3) 15... g6 {[%emt 0:03:35]} (15... d5 $1 $17 {[%cal Rd5d4]} 16. exd5 (16. Nxd5 $2 Bxd5 17. exd5 Nxd5 $19) 16... Nxd5 17. Nxd5 Bxd5) 16. h4 {[%emt 0:00:49] [#]} (16. Qf2 $11 Na4 17. Nxa4 Qxa5 18. b3) 16... Kh8 {[%emt 0:12:59]} (16... d5 $1 $17 {[%cal Rd5d4] Strongly threatening ...d4.} 17. exd5 (17. Nxd5 $2 Bxd5 18. exd5 Nxd5 $19) 17... Nxd5 18. Nxd5 Bxd5) 17. Nd5 {[%emt 0:19:45]} (17. Qf2 $11 Bd8 18. a3) 17... Nxd5 $15 {[%emt 0:08:03]} 18. exd5 {[%emt 0:06:42]} Bf5 {[%emt 0:00:03]} 19. Bd3 {[%emt 0:02:17]} Bxd3 {[%emt 0:14:23]} 20. cxd3 {[%emt 0:00:04]} Qd7 {[%emt 0:00:08]} 21. Qb4 {[%emt 0:09:32]} Rc7 {[%emt 0:02:17]} 22. Bb6 {[%emt 0:05:03]} Rcc8 {[%emt 0:01:54]} 23. Be3 {[%emt 0:00:18] Prevents Nf4} Rc7 {[%emt 0:06:30]} 24. Rc1 {[%emt 0:11:13]} (24. Bb6 $5 Rcc8 $8 25. d4 $11) 24... Rfc8 {[%emt 0:00:47]} 25. Rxc7 {[%emt 0:00:02]} Rxc7 {[%emt 0:00:06]} 26. Rc1 {[%emt 0:00:12]} (26. Bb6 $5 Rc8 $8 27. Be3 $16) 26... Rxc1+ {[%emt 0:03:17]} 27. Kxc1 {[%emt 0:00:58]} Qh3 {[%emt 0:04:46]} 28. Qg4 {[%emt 0:04:14] Against Ng3} Qf1+ {[%emt 0:07:54]} 29. Kd2 {[%emt 0:02:18][%cal Og4d7,Bc1d2,Bd2c3,Bc3c2][%mdl 32] Black must now prevent Qd7!} Kg7 {[%emt 0:00:32]} (29... Bf8 $15 30. Nxb7 Kg8) 30. Qd7 {[%emt 0:06:32]} (30. Nxb7 $11 Bf8 31. a3) 30... Qg2+ {[%emt 0:05:23]} 31. Kc3 {[%emt 0:00:43]} Qxf3 {[%emt 0:00:04]} (31... Bf8 $1 $15 32. Qxb7 Qxf3) 32. Qxe7 $11 {[%emt 0:02:12] Threatens to win with Nc4. The position is equal.} Qxe3 {[%emt 0:00:04]} 33. Nxb7 {[%emt 0:01:22]} Qd4+ {[%emt 0:03:10]} (33... Nf4 $5 34. Qf6+ $8 Kg8 35. Qd8+ Kg7 36. Qf6+ Kg8 37. Qd8+ Kg7 38. Nxd6 (38. Qf6+ Kg8 $11) 38... Qxd3+ (38... Nxd3 39. Qf6+ Kg8 40. Qxf7+ Kh8 41. Qf8#) (38... Nxd5+ 39. Kc2 $11) 39. Kb4 Qd4+ (39... Qxd5 40. Ka3 $11) (39... Nxd5+ $2 40. Ka5 $18) 40. Ka5 Qxd5+ 41. Kb6 h6 $11 (41... Qxa2 42. Ne8+ Kg8 43. Nf6+ Kg7 44. Qg8#)) 34. Kc2 {[%emt 0:00:11]} Nf4 {[%emt 0:00:29]} 35. Qf6+ {[%emt 0:00:51] Weighted Error Value: White=0.27 (precise) /Black=0.23 (precise) .  Mistake:       	White=4     	Black=4      Inaccurate:     	White=2     	Black=4      OK:         	White=7     	Black=9      Best:        	White=4     	Black=2} 1/2-1/2

[Event "Bundesturnier Hauptturnier 1 2024"]
[Site "Olten"]
[Date "2024.05.11"]
[Round "6.3"]
[White "Schlegel, Igor"]
[Black "Loetscher, Roland"]
[Result "0-1"]
[ECO "B12"]
[WhiteElo "2215"]
[BlackElo "2384"]
[Annotator "ChessBase"]
[PlyCount "64"]
[EventDate "2024.05.09"]
[EventType "tourn"]
[EventCountry "SUI"]
[SourceTitle "playchess.com"]
[Source "ChessBase"]
[SourceQuality "1"]
[TimeControl "5400+30"]

1. e4 {[%emt 0:00:03]} c6 {[%emt 0:00:05]} 2. d4 {[%emt 0:00:08]} d5 {[%emt 0:00:06]} 3. e5 {[%emt 0:00:24]} Bf5 {[%emt 0:00:10]} 4. Nf3 {[%emt 0:00:07]} e6 {[%emt 0:00:17]} 5. Be2 {[%emt 0:00:15]} c5 {[%emt 0:00:25]} 6. c3 {[%emt 0:00:07]} Nc6 {[%emt 0:00:24]} 7. O-O {[%emt 0:00:23]} cxd4 {[%emt 0:00:18]} 8. Nxd4 {[%emt 0:00:52]} Nge7 {[%emt 0:00:20]} 9. Nxf5 {[%emt 0:10:53]} Nxf5 {[%emt 0:00:25]} 10. Bd3 {[%emt 0:00:15]} g6 {[%emt 0:00:51]} 11. Qe2 {[%emt 0:13:53]} Bg7 {[%emt 0:02:38]} 12. f4 {[%emt 0:04:15]} O-O {[%emt 0:23:36]} 13. Kh1 {[%emt 0:07:35]} f6 {[%emt 0:06:27]} 14. exf6 {[%emt 0:14:46]} Qxf6 {[%emt 0:00:29]} 15. Nd2 {[%emt 0:00:20]} e5 {[%emt 0:14:41]} 16. fxe5 {[%emt 0:00:38]} Qxe5 {[%emt 0:00:32]} 17. Nf3 {[%emt 0:11:33]} Qxe2 {[%emt 0:06:38]} 18. Bxe2 {[%emt 0:00:06]} Rae8 {[%emt 0:00:14]} 19. Bd1 {[%emt 0:03:38]} d4 {[%emt 0:01:17]} 20. cxd4 {[%emt 0:00:56]} Ncxd4 {[%emt 0:01:30]} 21. Bd2 {[%emt 0:15:33]} Ne3 {[%emt 0:02:55]} 22. Bxe3 {[%emt 0:00:37]} Rxe3 {[%emt 0:00:08]} 23. Rc1 {[%emt 0:04:11]} b5 {[%emt 0:08:37]} 24. h3 {[%emt 0:04:57]} Kh8 {[%emt 0:03:39]} 25. Rc5 {[%emt 0:03:46]} a6 {[%emt 0:03:52]} 26. b3 {[%emt 0:00:17]} Be5 {[%emt 0:03:17]} 27. Rd5 {[%emt 0:02:58]} Nf5 {[%emt 0:04:18]} 28. Kg1 {[%emt 0:00:17]} Ng3 {[%emt 0:07:16]} 29. Rf2 {[%emt 0:00:08]} Bc7 {[%emt 0:00:51]} 30. Rc2 {[%emt 0:00:43]} Re1+ {[%emt 0:01:39]} 31. Kf2 {[%emt 0:00:01]} Rf1+ {[%emt 0:00:15]} 32. Ke3 {[%emt 0:00:03]} Bf4+ {[%emt 0:00:10]} 0-1

[Event "Bundesturnier Hauptturnier 1 2024"]
[Site "Olten"]
[Date "2024.05.11"]
[Round "6.4"]
[White "Willems, Niels"]
[Black "Manko, Mariia"]
[Result "1-0"]
[ECO "D32"]
[WhiteElo "2329"]
[BlackElo "2247"]
[Annotator "ChessBase"]
[PlyCount "87"]
[EventDate "2024.05.09"]
[EventType "tourn"]
[EventCountry "SUI"]
[SourceTitle "playchess.com"]
[Source "ChessBase"]
[SourceQuality "1"]
[TimeControl "5400+30"]

1. c4 {[%emt 0:00:04]} e6 {[%emt 0:09:49]} 2. Nc3 {[%emt 0:00:25]} d5 {[%emt 0:01:12]} 3. e3 {[%emt 0:00:05]} Nf6 {[%emt 0:00:28]} 4. Nf3 {[%emt 0:00:04]} Be7 {[%emt 0:01:21]} 5. Be2 {[%emt 0:01:12]} O-O {[%emt 0:01:02]} 6. O-O {[%emt 0:00:46]} c5 {[%emt 0:06:28]} 7. cxd5 {[%emt 0:00:11]} exd5 {[%emt 0:00:46]} 8. d4 {[%emt 0:00:05]} Nc6 {[%emt 0:00:28]} 9. dxc5 {[%emt 0:04:21]} Bxc5 {[%emt 0:01:55]} 10. b3 {[%emt 0:00:14]} Be6 {[%emt 0:09:25]} 11. Bb2 {[%emt 0:00:22]} Ne4 {[%emt 0:06:55]} 12. Rc1 {[%emt 0:02:31]} Be7 {[%emt 0:04:02]} 13. Nb5 {[%emt 0:08:38]} Bf6 {[%emt 0:05:21]} 14. Bxf6 {[%emt 0:03:20]} Qxf6 {[%emt 0:02:19]} 15. Nfd4 {[%emt 0:04:40]} Rfc8 {[%emt 0:04:36]} 16. f3 {[%emt 0:13:42]} Nxd4 {[%emt 0:07:32]} 17. exd4 {[%emt 0:01:49]} Rxc1 {[%emt 0:14:35]} 18. Qxc1 {[%emt 0:00:08]} Ng5 {[%emt 0:01:04]} 19. Qe3 {[%emt 0:19:13]} a6 {[%emt 0:04:19]} 20. Nc3 {[%emt 0:00:42]} h6 {[%emt 0:01:51]} 21. Bd3 {[%emt 0:09:30]} Rd8 {[%emt 0:02:49]} 22. f4 {[%emt 0:07:10]} Ne4 {[%emt 0:04:17]} 23. Nxe4 {[%emt 0:09:05]} dxe4 {[%emt 0:00:05]} 24. Bxe4 {[%emt 0:00:04]} Qxd4 {[%emt 0:03:32]} 25. Qxd4 {[%emt 0:00:03]} Rxd4 {[%emt 0:00:03]} 26. Bxb7 {[%emt 0:00:01]} Rd2 {[%emt 0:00:31]} 27. f5 {[%emt 0:00:15]} Bd5 {[%emt 0:02:52]} 28. Bxd5 {[%emt 0:00:13]} Rxd5 {[%emt 0:00:03]} 29. h3 {[%emt 0:00:51]} Kf8 {[%emt 0:02:04]} 30. f6 {[%emt 0:03:18]} g6 {[%emt 0:00:01]} 31. Rc1 {[%emt 0:00:29]} Ke8 {[%emt 0:00:02]} 32. Rc6 {[%emt 0:00:50]} Ra5 {[%emt 0:00:27]} 33. a4 {[%emt 0:02:12]} Kd7 {[%emt 0:00:01]} 34. Rc3 {[%emt 0:02:08]} Rf5 {[%emt 0:00:38]} 35. Rf3 {[%emt 0:02:46]} Rc5 {[%emt 0:01:03]} 36. Re3 {[%emt 0:03:58]} Kd6 {[%emt 0:00:43]} 37. Re7 {[%emt 0:00:16]} Rc1+ {[%emt 0:00:32]} 38. Kh2 {[%emt 0:00:09]} Rc6 {[%emt 0:02:49]} 39. a5 {[%emt 0:03:23]} Kc5 {[%emt 0:00:52]} 40. Rxf7 {[%emt 0:00:01]} Kb4 {[%emt 0:00:18]} 41. Rf8 {[%emt 0:00:44]} Kxa5 {[%emt 0:00:33]} 42. f7 {[%emt 0:00:04]} Rf6 {[%emt 0:00:13]} 43. b4+ {[%emt 0:00:07]} Ka4 {[%emt 0:00:10]} 44. b5 {[%emt 0:00:06]} 1-0

[Event "Bundesturnier Hauptturnier 1 2024"]
[Site "Olten"]
[Date "2024.05.11"]
[Round "6.5"]
[White "Rappazzo, Johannes"]
[Black "Rohrer, Christophe"]
[Result "1/2-1/2"]
[ECO "C51"]
[WhiteElo "2129"]
[BlackElo "2240"]
[Annotator "ChessBase"]
[PlyCount "186"]
[EventDate "2024.05.09"]
[EventType "tourn"]
[EventCountry "SUI"]
[SourceTitle "playchess.com"]
[Source "ChessBase"]
[SourceQuality "1"]
[TimeControl "5400+30"]

1. e4 {[%emt 0:00:03]} e5 {[%emt 0:00:10]} 2. Nf3 {[%emt 0:00:04]} Nc6 {[%emt 0:00:14]} 3. Bc4 {[%emt 0:00:04]} Bc5 {[%emt 0:00:16]} 4. b4 {[%emt 0:00:03]} Bb6 {[%emt 0:00:14]} 5. a4 {[%emt 0:00:05]} a6 {[%emt 0:00:15]} 6. Nc3 {[%emt 0:00:12]} Nf6 {[%emt 0:00:28]} 7. Nd5 {[%emt 0:00:10]} Nxd5 {[%emt 0:00:36]} 8. exd5 {[%emt 0:00:05]} Nd4 {[%emt 0:00:08]} 9. d6 {[%emt 0:01:20]} Qf6 {[%emt 0:00:29]} 10. c3 {[%emt 0:01:29]} Nxf3+ {[%emt 0:01:58]} 11. Qxf3 {[%emt 0:00:06]} Qxf3 {[%emt 0:00:25]} 12. gxf3 {[%emt 0:00:05]} cxd6 {[%emt 0:00:32]} 13. Rg1 {[%emt 0:04:28]} g6 {[%emt 0:07:22]} 14. d4 {[%emt 0:10:10]} d5 {[%emt 0:11:25]} 15. Bxd5 {[%emt 0:02:04]} exd4 {[%emt 0:06:21]} 16. Bh6 {[%emt 0:18:01]} dxc3 {[%emt 0:09:30]} 17. a5 {[%emt 0:14:43]} Bc7 {[%emt 0:11:17]} 18. O-O-O {[%emt 0:24:25]} d6 {[%emt 0:01:10]} 19. Rge1+ {[%emt 0:11:19]} Be6 {[%emt 0:00:57]} 20. Bxb7 {[%emt 0:00:32]} Rb8 {[%emt 0:02:06]} 21. Bxa6 {[%emt 0:04:38]} Rxb4 {[%emt 0:00:52]} 22. Bg7 {[%emt 0:00:07]} Rg8 {[%emt 0:00:11]} 23. Bxc3 {[%emt 0:00:04]} Rb3 {[%emt 0:01:38]} 24. Kd2 {[%emt 0:03:53]} Rxc3 {[%emt 0:02:46]} 25. Rxe6+ {[%emt 0:00:08]} fxe6 {[%emt 0:00:05]} 26. Kxc3 {[%emt 0:00:03]} Bxa5+ {[%emt 0:00:06]} 27. Kd3 {[%emt 0:00:22]} Kf7 {[%emt 0:03:56]} 28. Ra1 {[%emt 0:01:05]} Bd8 {[%emt 0:03:04]} 29. Ke2 {[%emt 0:01:14]} Bg5 {[%emt 0:02:11]} 30. Ra2 {[%emt 0:01:37]} Kf6 {[%emt 0:00:15]} 31. Kf1 {[%emt 0:01:23]} Rb8 {[%emt 0:00:44]} 32. Bd3 {[%emt 0:00:38]} Rb3 {[%emt 0:00:50]} 33. Ke2 {[%emt 0:01:01]} Rb4 {[%emt 0:01:12]} 34. Kf1 {[%emt 0:00:52]} d5 {[%emt 0:01:57]} 35. Bc2 {[%emt 0:00:34]} Bf4 {[%emt 0:02:09]} 36. h3 {[%emt 0:00:19]} Rc4 {[%emt 0:02:39]} 37. Ke2 {[%emt 0:00:52]} Rc3 {[%emt 0:00:32]} 38. Bd3 {[%emt 0:00:32]} Rc1 {[%emt 0:00:50]} 39. Ra4 {[%emt 0:00:17]} Bd6 {[%emt 0:08:19]} 40. Ra7 {[%emt 0:00:31]} Be7 {[%emt 0:03:44]} 41. Ra6 {[%emt 0:00:09]} Bb4 {[%emt 0:00:58]} 42. Ke3 {[%emt 0:00:41]} Bc5+ {[%emt 0:01:20]} 43. Ke2 {[%emt 0:00:52]} Rh1 {[%emt 0:00:18]} 44. Bb5 {[%emt 0:00:24]} Rb1 {[%emt 0:06:25]} 45. Bd7 {[%emt 0:00:23]} Bb6 {[%emt 0:01:09]} 46. Kd2 {[%emt 0:00:26]} d4 {[%emt 0:00:28]} 47. Kc2 {[%emt 0:00:29]} Rb4 {[%emt 0:00:41]} 48. Ra4 {[%emt 0:00:06]} Rxa4 {[%emt 0:01:54]} 49. Bxa4 {[%emt 0:00:04]} Kg5 {[%emt 0:00:06]} 50. Bd7 {[%emt 0:00:04]} Kf4 {[%emt 0:00:19]} 51. Bc6 {[%emt 0:00:44]} Bd8 {[%emt 0:01:06]} 52. Kd3 {[%emt 0:00:10]} e5 {[%emt 0:00:25]} 53. Ke2 {[%emt 0:00:54]} Bh4 {[%emt 0:00:46]} 54. Be4 {[%emt 0:00:12]} Kg5 {[%emt 0:00:06]} 55. Bd3 {[%emt 0:00:37]} Kf6 {[%emt 0:00:12]} 56. Be4 {[%emt 0:00:20]} Ke6 {[%emt 0:00:04]} 57. Bd3 {[%emt 0:01:04]} Kd5 {[%emt 0:00:04]} 58. Be4+ {[%emt 0:00:25]} Kc4 {[%emt 0:00:05]} 59. Bd3+ {[%emt 0:00:17]} Kb3 {[%emt 0:00:45]} 60. Be4 {[%emt 0:00:19]} Kc3 {[%emt 0:00:16]} 61. Bb1 {[%emt 0:00:04]} Kb4 {[%emt 0:04:28]} 62. Be4 {[%emt 0:00:20]} Kc5 {[%emt 0:00:07]} 63. Bd3 {[%emt 0:00:06]} Kd5 {[%emt 0:00:05]} 64. Be4+ {[%emt 0:00:07]} Ke6 {[%emt 0:00:03]} 65. Bd3 {[%emt 0:00:13]} Kf6 {[%emt 0:00:04]} 66. Bb1 {[%emt 0:00:14]} Kg5 {[%emt 0:00:06]} 67. Bd3 {[%emt 0:00:26]} Kh5 {[%emt 0:00:47]} 68. Bb5 {[%emt 0:00:14]} Bg5 {[%emt 0:00:12]} 69. Bd7 {[%emt 0:00:18]} Kh4 {[%emt 0:00:14]} 70. Bc8 {[%emt 0:00:21]} Be7 {[%emt 0:00:58]} 71. Bd7 {[%emt 0:00:21]} Bb4 {[%emt 0:00:39]} 72. Bc8 {[%emt 0:00:14]} Kg5 {[%emt 0:00:47]} 73. Bb7 {[%emt 0:00:22]} Kh4 {[%emt 0:00:31]} 74. Bc8 {[%emt 0:00:04]} h5 {[%emt 0:00:05]} 75. Bd7 {[%emt 0:00:26]} Ba5 {[%emt 0:00:55]} 76. Bc8 {[%emt 0:00:17]} Kg5 {[%emt 0:00:15]} 77. Bb7 {[%emt 0:00:30]} Kf4 {[%emt 0:00:15]} 78. Be4 {[%emt 0:00:28]} g5 {[%emt 0:00:04]} 79. Bg6 {[%emt 0:05:40]} g4 {[%emt 0:00:13]} 80. fxg4 {[%emt 0:00:09]} h4 {[%emt 0:00:47]} 81. f3 {[%emt 0:00:44]} Kg3 {[%emt 0:00:30]} 82. Bf5 {[%emt 0:00:11]} Kf4 {[%emt 0:04:29]} 83. Bd7 {[%emt 0:00:17]} Bd8 {[%emt 0:00:54]} 84. g5 {[%emt 0:00:23]} Bxg5 {[%emt 0:00:26]} 85. Bg4 {[%emt 0:00:20]} Kg3 {[%emt 0:01:17]} 86. Kd3 {[%emt 0:00:12]} Kf2 {[%emt 0:00:09]} 87. Bh5 {[%emt 0:00:15]} Bf4 {[%emt 0:00:05]} 88. Bg4 {[%emt 0:00:10]} Kg2 {[%emt 0:00:23]} 89. Ke4 {[%emt 0:00:13]} Kf1 {[%emt 0:00:19]} 90. Kd3 {[%emt 0:00:08]} Ke1 {[%emt 0:00:05]} 91. Bh5 {[%emt 0:00:07]} Kf2 {[%emt 0:00:08]} 92. Bg4 {[%emt 0:00:08]} Be3 {[%emt 0:00:13]} 93. Bh5 {[%emt 0:00:07]} Bf4 {[%emt 0:00:13]} 1/2-1/2